[Event "CCT Chessable Masters D-III 2024"]
[Site "Online"]
[Date "2024.02.03"]
[Round "52"]
[White "ViIIagra"]
[Black "Deac, Bogdan-Daniel"]
[Result "0-1"]
[ECO "D00"]
[WhiteElo "2586"]
[BlackElo "2690"]
[Annotator "ChessBase"]
[PlyCount "68"]
[EventDate "2024.01.12"]
[EventType "k.o."]
[EventCountry "NET"]
[SourceTitle "playchess.com"]
[Source "ChessBase"]
[SourceQuality "1"]
[TimeControl "600+2"]

1. d4 {[%emt 0:00:03]} d5 {[%emt 0:00:04]} 2. Nc3 {[%emt 0:00:02]} Nf6 {[%emt 0:00:01]} 3. Bf4 {[%emt 0:00:01]} e6 {[%emt 0:00:01]} 4. e3 {[%emt 0:00:02]} Bd6 {[%emt 0:00:38]} 5. Nf3 {[%emt 0:00:44]} O-O {[%emt 0:00:27]} 6. a3 {[%emt 0:00:40]} c5 {[%emt 0:00:32]} 7. dxc5 {[%emt 0:00:36]} Bxc5 {[%emt 0:00:36]} 8. Nb5 {[%emt 0:01:08]} Nc6 {[%emt 0:00:14]} 9. b4 {[%emt 0:01:13]} Be7 {[%emt 0:00:27]} 10. Ne5 {[%emt 0:01:28]} Nxe5 {[%emt 0:00:39]} 11. Bxe5 {[%emt 0:00:00]} Bd7 {[%emt 0:00:00]} 12. Nd4 {[%emt 0:00:45]} a5 {[%emt 0:02:11]} 13. b5 {[%emt 0:00:13]} Ne4 {[%emt 0:00:14]} 14. Bd3 {[%emt 0:00:17]} f6 {[%emt 0:00:02]} 15. Bg3 {[%emt 0:00:04]} e5 {[%emt 0:00:24]} 16. Ne2 {[%emt 0:00:07]} Nc5 {[%emt 0:00:50]} 17. Nc3 {[%emt 0:00:05]} Be6 {[%emt 0:00:05]} 18. O-O {[%emt 0:00:07]} Rc8 {[%emt 0:00:21]} 19. Qd2 {[%emt 0:00:36]} d4 {[%emt 0:00:55]} 20. Ne4 {[%emt 0:00:46]} dxe3 {[%emt 0:00:29]} 21. Qxe3 {[%emt 0:00:11]} Nxd3 {[%emt 0:00:01]} 22. cxd3 {[%emt 0:00:01]} Qd5 {[%emt 0:00:14]} 23. Rfc1 {[%emt 0:00:10]} Qxb5 {[%emt 0:01:08]} 24. d4 {[%emt 0:00:07]} Rxc1+ {[%emt 0:00:07]} 25. Rxc1 {[%emt 0:00:00]} Qb3 {[%emt 0:00:01]} 26. Nc3 {[%emt 0:00:14]} Bxa3 {[%emt 0:00:07]} 27. Rb1 {[%emt 0:00:01]} Qc4 {[%emt 0:00:01]} 28. d5 {[%emt 0:00:07]} Bc8 {[%emt 0:00:03]} 29. Ne4 {[%emt 0:00:25]} Bb4 {[%emt 0:00:02]} 30. d6 {[%emt 0:00:03]} Bf5 {[%emt 0:00:01]} 31. Rc1 {[%emt 0:00:30]} Qxe4 {[%emt 0:00:02]} 32. Qb3+ {[%emt 0:00:00]} Kh8 {[%emt 0:00:03]} 33. d7 {[%emt 0:00:00]} Bxd7 {[%emt 0:00:01]} 34. f3 {[%emt 0:00:05]} Qg6 {[%emt 0:00:01]} 0-1

[Event "CCT Chessable Masters D-III 2024"]
[Site "Online"]
[Date "2024.02.03"]
[Round "52"]
[White "kpio91"]
[Black "Bortnyk, Oleksandr"]
[Result "0-1"]
[ECO "B03"]
[WhiteElo "2436"]
[BlackElo "2633"]
[Annotator "NA"]
[PlyCount "58"]
[EventDate "2024.01.12"]
[EventType "k.o."]
[EventCountry "NET"]
[SourceTitle "playchess.com"]
[Source "ChessBase"]
[SourceQuality "1"]
[TimeControl "600+2"]

1. e4 {[%emt 0:00:03]} Nf6 {[%emt 0:00:10]} 2. e5 {[%emt 0:00:02]} Nd5 {[%emt 0:00:01]} 3. d4 {[%emt 0:00:00]} d6 {[%emt 0:00:01]} 4. c4 {[%emt 0:00:01]} Nb6 {[%emt 0:00:00]} 5. f4 {[%emt 0:00:01]} dxe5 {[%emt 0:00:01]} 6. fxe5 {[%emt 0:00:01]} Bf5 {[%emt 0:00:01]} 7. Nc3 {[%emt 0:00:07]} e6 {[%emt 0:00:02]} 8. Nf3 {[%emt 0:00:01]} Bb4 {[%emt 0:00:01]} 9. Bd3 {[%emt 0:00:01]} c5 {[%emt 0:00:02]} 10. Bg5 {[%emt 0:00:12]} Qd7 {[%emt 0:00:03]} 11. d5 {[%emt 0:00:00]} exd5 {[%emt 0:01:41]} 12. cxd5 {[%emt 0:00:46]} Bxc3+ {[%emt 0:00:40]} 13. bxc3 {[%emt 0:00:03]} Bxd3 {[%emt 0:00:00]} 14. Qxd3 {[%emt 0:00:02]} Qxd5 {[%emt 0:00:02]} 15. Qc2 {[%emt 0:00:48]} Qc4 {[%emt 0:00:28]} 16. Nd2 {[%emt 0:01:22]} Qe6 {[%emt 0:01:14]} 17. O-O {[%emt 0:00:06]} N8d7 {[%emt 0:00:04]} 18. Rae1 {[%emt 0:01:02]} O-O {[%emt 0:00:02]} 19. Ne4 {[%emt 0:00:36]} Nc4 {[%emt 0:00:37]} 20. Bf6 {[%emt 0:00:50]} gxf6 {[%emt 0:01:50]} 21. exf6 {[%emt 0:00:38]} Qg4 {[%emt 0:02:00]} 22. Rf3 {[%emt 0:00:51]} Kh8 {[%emt 0:00:02]} 23. Rg3 {[%emt 0:01:14]} Qh4 {[%emt 0:00:09]} 24. Ng5 {[%emt 0:00:29]} Nxf6 {[%emt 0:00:30]} 25. Rf1 {[%emt 0:01:12]} Ne3 {[%emt 0:00:02]} 26. Rxe3 {[%emt 0:00:14]} Qxg5 {[%emt 0:00:02]} 27. Rg3 {[%emt 0:00:02]} Qe5 {[%emt 0:00:12]} 28. Rf5 {[%emt 0:00:06]} Qe4 {[%emt 0:00:10]} 29. Qf2 {[%emt 0:00:06]} Qb1+ {[%emt 0:00:02]} 0-1

[Event "CCT Chessable Masters D-III 2024"]
[Site "Online"]
[Date "2024.02.03"]
[Round "53"]
[White "Tabatabaei, M. Amin"]
[Black "Deac, Bogdan-Daniel"]
[Result "0-1"]
[ECO "E60"]
[WhiteElo "2696"]
[BlackElo "2690"]
[Annotator "ChessBase"]
[PlyCount "152"]
[EventDate "2024.01.12"]
[EventType "k.o."]
[EventCountry "NET"]
[SourceTitle "playchess.com"]
[Source "ChessBase"]
[SourceQuality "1"]
[TimeControl "600+2"]

1. d4 {[%emt 0:00:04]} Nf6 {[%emt 0:00:05]} 2. c4 {[%emt 0:00:01]} g6 {[%emt 0:00:01]} 3. g3 {[%emt 0:00:25]} c5 {[%emt 0:00:07]} 4. Nf3 {[%emt 0:00:09]} Bg7 {[%emt 0:00:32]} 5. Bg2 {[%emt 0:00:02]} Qa5+ {[%emt 0:00:01]} 6. Qd2 {[%emt 0:00:27]} Nc6 {[%emt 0:00:27]} 7. Qxa5 {[%emt 0:00:36]} Nxa5 {[%emt 0:00:02]} 8. dxc5 {[%emt 0:01:21]} Ne4 {[%emt 0:00:14]} 9. Nbd2 {[%emt 0:00:45]} Nxc5 {[%emt 0:00:08]} 10. Rb1 {[%emt 0:00:16]} Na4 {[%emt 0:00:02]} 11. e3 {[%emt 0:01:02]} Nc6 {[%emt 0:00:32]} 12. O-O {[%emt 0:00:09]} d6 {[%emt 0:00:07]} 13. a3 {[%emt 0:00:33]} Bf5 {[%emt 0:00:27]} 14. e4 {[%emt 0:00:04]} Be6 {[%emt 0:00:00]} 15. Re1 {[%emt 0:00:42]} Rc8 {[%emt 0:00:06]} 16. b4 {[%emt 0:00:23]} Ne5 {[%emt 0:01:12]} 17. Nxe5 {[%emt 0:00:22]} Bxe5 {[%emt 0:00:01]} 18. Bf1 {[%emt 0:00:24]} Bc3 {[%emt 0:00:24]} 19. b5 {[%emt 0:00:52]} Nb6 {[%emt 0:00:41]} 20. Re3 {[%emt 0:00:23]} Bxd2 {[%emt 0:00:44]} 21. Bxd2 {[%emt 0:00:01]} Bxc4 {[%emt 0:00:36]} 22. Bg2 {[%emt 0:00:01]} Kd7 {[%emt 0:00:02]} 23. e5 {[%emt 0:00:06]} Bd5 {[%emt 0:00:13]} 24. exd6 {[%emt 0:00:05]} e6 {[%emt 0:00:17]} 25. Bf1 {[%emt 0:00:23]} Kxd6 {[%emt 0:01:41]} 26. Bc3 {[%emt 0:00:03]} Rhe8 {[%emt 0:00:11]} 27. Bb4+ {[%emt 0:00:27]} Kd7 {[%emt 0:00:03]} 28. Rd1 {[%emt 0:00:00]} Rc7 {[%emt 0:00:28]} 29. a4 {[%emt 0:00:10]} Nxa4 {[%emt 0:01:14]} 30. Ra1 {[%emt 0:00:02]} Nb6 {[%emt 0:00:05]} 31. Rxa7 {[%emt 0:00:01]} Rc1 {[%emt 0:00:03]} 32. Re1 {[%emt 0:00:31]} Rxe1 {[%emt 0:00:02]} 33. Bxe1 {[%emt 0:00:00]} Rc8 {[%emt 0:00:07]} 34. Ra1 {[%emt 0:00:03]} Rc2 {[%emt 0:00:04]} 35. h4 {[%emt 0:00:01]} h5 {[%emt 0:00:02]} 36. Rd1 {[%emt 0:00:03]} Kc8 {[%emt 0:00:10]} 37. Ba5 {[%emt 0:00:08]} Nd7 {[%emt 0:00:03]} 38. Bb4 {[%emt 0:00:04]} b6 {[%emt 0:00:01]} 39. Bd6 {[%emt 0:00:01]} Nc5 {[%emt 0:00:01]} 40. Bxc5 {[%emt 0:00:07]} Rxc5 {[%emt 0:00:01]} 41. Ra1 {[%emt 0:00:02]} Kb7 {[%emt 0:00:01]} 42. Rd1 {[%emt 0:00:03]} Kc7 {[%emt 0:00:02]} 43. Ra1 {[%emt 0:00:01]} Kb7 {[%emt 0:00:01]} 44. Rd1 {[%emt 0:00:00]} f6 {[%emt 0:00:03]} 45. Re1 {[%emt 0:00:02]} Kc7 {[%emt 0:00:01]} 46. Ra1 {[%emt 0:00:01]} Kd6 {[%emt 0:00:01]} 47. Bd3 {[%emt 0:00:05]} f5 {[%emt 0:00:02]} 48. Bf1 {[%emt 0:00:02]} Rc3 {[%emt 0:00:01]} 49. Ra6 {[%emt 0:00:02]} Kc5 {[%emt 0:00:01]} 50. Ra7 {[%emt 0:00:01]} Rb3 {[%emt 0:00:02]} 51. Rc7+ {[%emt 0:00:03]} Kd4 {[%emt 0:00:01]} 52. Rd7 {[%emt 0:00:03]} Rb1 {[%emt 0:00:02]} 53. Rd8 {[%emt 0:00:03]} Ke4 {[%emt 0:00:02]} 54. Kg2 {[%emt 0:00:02]} Ke5+ {[%emt 0:00:01]} 55. f3 {[%emt 0:00:00]} Rb2+ {[%emt 0:00:03]} 56. Kg1 {[%emt 0:00:01]} Bxf3 {[%emt 0:00:00]} 57. Rb8 {[%emt 0:00:00]} Bd5 {[%emt 0:00:06]} 58. Rxb6 {[%emt 0:00:01]} Kd4 {[%emt 0:00:01]} 59. Rb8 {[%emt 0:00:01]} Ke3 {[%emt 0:00:03]} 60. Rg8 {[%emt 0:00:06]} Rb1 {[%emt 0:00:02]} 61. Rc8 {[%emt 0:00:00]} e5 {[%emt 0:00:05]} 62. Rc5 {[%emt 0:00:04]} Kd4 {[%emt 0:00:01]} 63. Rc2 {[%emt 0:00:01]} e4 {[%emt 0:00:02]} 64. Rd2+ {[%emt 0:00:01]} Ke5 {[%emt 0:00:03]} 65. Kf2 {[%emt 0:00:01]} e3+ {[%emt 0:00:02]} 66. Kxe3 {[%emt 0:00:02]} Rxf1 {[%emt 0:00:00]} 67. Rb2 {[%emt 0:00:01]} Rc1 {[%emt 0:00:04]} 68. b6 {[%emt 0:00:01]} Rc3+ {[%emt 0:00:02]} 69. Kd2 {[%emt 0:00:03]} Rc8 {[%emt 0:00:00]} 70. b7 {[%emt 0:00:03]} Rb8 {[%emt 0:00:01]} 71. Rb6 {[%emt 0:00:01]} Rxb7 {[%emt 0:00:02]} 72. Rxg6 {[%emt 0:00:00]} Bf3 {[%emt 0:00:02]} 73. Rg5 {[%emt 0:00:02]} Bg4 {[%emt 0:00:01]} 74. Ke3 {[%emt 0:00:00]} Rb3+ {[%emt 0:00:02]} 75. Kf2 {[%emt 0:00:00]} Rb2+ {[%emt 0:00:01]} 76. Ke3 {[%emt 0:00:01]} Rg2 {[%emt 0:00:01]} 0-1

[Event "CCT Chessable Masters D-III 2024"]
[Site "Online"]
[Date "2024.02.03"]
[Round "53"]
[White "Deac, Bogdan-Daniel"]
[Black "Tabatabaei, M. Amin"]
[Result "0-1"]
[ECO "C84"]
[WhiteElo "2690"]
[BlackElo "2696"]
[Annotator "ChessBase"]
[PlyCount "118"]
[EventDate "2024.01.12"]
[EventType "k.o."]
[EventCountry "NET"]
[SourceTitle "playchess.com"]
[Source "ChessBase"]
[SourceQuality "1"]
[TimeControl "600+2"]

1. e4 {[%emt 0:00:05]} e5 {[%emt 0:00:16]} 2. Nf3 {[%emt 0:00:01]} Nc6 {[%emt 0:00:01]} 3. Bb5 {[%emt 0:00:01]} a6 {[%emt 0:00:01]} 4. Ba4 {[%emt 0:00:02]} Nf6 {[%emt 0:00:01]} 5. O-O {[%emt 0:00:01]} Nxe4 {[%emt 0:00:01]} 6. d4 {[%emt 0:00:01]} Be7 {[%emt 0:00:01]} 7. Re1 {[%emt 0:00:20]} b5 {[%emt 0:00:01]} 8. d5 {[%emt 0:00:01]} Nf6 {[%emt 0:01:36]} 9. dxc6 {[%emt 0:00:32]} bxa4 {[%emt 0:00:02]} 10. Nxe5 {[%emt 0:00:02]} O-O {[%emt 0:00:57]} 11. cxd7 {[%emt 0:00:29]} Bxd7 {[%emt 0:00:01]} 12. Nc3 {[%emt 0:04:44]} a3 {[%emt 0:00:21]} 13. bxa3 {[%emt 0:01:00]} Re8 {[%emt 0:01:22]} 14. Nxd7 {[%emt 0:01:13]} Qxd7 {[%emt 0:00:56]} 15. Qxd7 {[%emt 0:00:04]} Nxd7 {[%emt 0:00:00]} 16. Nd5 {[%emt 0:00:08]} Bd6 {[%emt 0:00:18]} 17. Be3 {[%emt 0:00:53]} Rab8 {[%emt 0:01:57]} 18. Red1 {[%emt 0:00:06]} Ne5 {[%emt 0:00:11]} 19. Rd4 {[%emt 0:00:31]} Rb2 {[%emt 0:00:21]} 20. Ra4 {[%emt 0:00:01]} Reb8 {[%emt 0:00:25]} 21. g3 {[%emt 0:00:04]} Rxc2 {[%emt 0:00:04]} 22. Rxa6 {[%emt 0:00:06]} h5 {[%emt 0:00:01]} 23. Nb4 {[%emt 0:00:05]} Bxb4 {[%emt 0:00:24]} 24. axb4 {[%emt 0:00:04]} Rxb4 {[%emt 0:00:00]} 25. h3 {[%emt 0:00:03]} Nc4 {[%emt 0:00:27]} 26. Ba7 {[%emt 0:00:09]} Nb6 {[%emt 0:00:22]} 27. Bxb6 {[%emt 0:00:02]} cxb6 {[%emt 0:00:00]} 28. a4 {[%emt 0:00:03]} Rbb2 {[%emt 0:00:01]} 29. Rf1 {[%emt 0:00:01]} Rc5 {[%emt 0:00:02]} 30. Kg2 {[%emt 0:00:06]} g6 {[%emt 0:00:01]} 31. Re1 {[%emt 0:00:02]} Rf5 {[%emt 0:00:01]} 32. Rf1 {[%emt 0:00:01]} Ra5 {[%emt 0:00:04]} 33. Rxa5 {[%emt 0:00:02]} bxa5 {[%emt 0:00:00]} 34. Ra1 {[%emt 0:00:01]} Kg7 {[%emt 0:00:03]} 35. g4 {[%emt 0:00:01]} h4 {[%emt 0:00:03]} 36. g5 {[%emt 0:00:03]} Rb4 {[%emt 0:00:03]} 37. Kf3 {[%emt 0:00:02]} Kf8 {[%emt 0:00:01]} 38. Rc1 {[%emt 0:00:04]} Rxa4 {[%emt 0:00:04]} 39. Rc7 {[%emt 0:00:02]} Rb4 {[%emt 0:00:04]} 40. Ra7 {[%emt 0:00:01]} a4 {[%emt 0:00:00]} 41. Ke3 {[%emt 0:00:01]} Rb3+ {[%emt 0:00:26]} 42. Kf4 {[%emt 0:00:02]} Rb4+ {[%emt 0:00:14]} 43. Ke3 {[%emt 0:00:01]} Kg8 {[%emt 0:00:02]} 44. f3 {[%emt 0:00:03]} Kg7 {[%emt 0:00:05]} 45. Ra6 {[%emt 0:00:02]} Kh7 {[%emt 0:00:02]} 46. Ra8 {[%emt 0:00:02]} Rc4 {[%emt 0:00:02]} 47. Ra6 {[%emt 0:00:02]} Kg8 {[%emt 0:00:01]} 48. Ra8+ {[%emt 0:00:01]} Kg7 {[%emt 0:00:01]} 49. Ra7 {[%emt 0:00:01]} Kf8 {[%emt 0:00:01]} 50. Kd3 {[%emt 0:00:05]} Rb4 {[%emt 0:00:02]} 51. Ke3 {[%emt 0:00:00]} Ke8 {[%emt 0:00:00]} 52. f4 {[%emt 0:00:02]} Rb3+ {[%emt 0:00:02]} 53. Ke4 {[%emt 0:00:02]} a3 {[%emt 0:00:01]} 54. Ke5 {[%emt 0:00:05]} Rxh3 {[%emt 0:00:01]} 55. Kf6 {[%emt 0:00:02]} Rf3 {[%emt 0:00:00]} 56. Ra8+ {[%emt 0:00:02]} Kd7 {[%emt 0:00:00]} 57. Kxf7 {[%emt 0:00:01]} h3 {[%emt 0:00:01]} 58. f5 {[%emt 0:00:04]} h2 {[%emt 0:00:04]} 59. Rh8 {[%emt 0:00:02]} a2 {[%emt 0:00:01]} 0-1

[Event "CCT Chessable Masters D-III 2024"]
[Site "Online"]
[Date "2024.02.03"]
[Round "53"]
[White "KuzubovYuriy"]
[Black "bardiya_Daneshvar"]
[Result "0-1"]
[ECO "D45"]
[WhiteElo "2684"]
[BlackElo "2597"]
[Annotator "ChessBase"]
[PlyCount "90"]
[EventDate "2024.01.12"]
[EventType "k.o."]
[EventCountry "NET"]
[SourceTitle "playchess.com"]
[Source "ChessBase"]
[SourceQuality "1"]
[TimeControl "600+2"]

1. d4 {[%emt 0:00:25]} Nf6 {[%emt 0:00:07]} 2. Nf3 {[%emt 0:00:02]} d5 {[%emt 0:00:05]} 3. c4 {[%emt 0:00:02]} c6 {[%emt 0:00:02]} 4. Nc3 {[%emt 0:00:02]} e6 {[%emt 0:00:01]} 5. e3 {[%emt 0:00:02]} Nbd7 {[%emt 0:00:01]} 6. Be2 {[%emt 0:00:00]} Bd6 {[%emt 0:00:13]} 7. b3 {[%emt 0:00:03]} O-O {[%emt 0:00:05]} 8. Bb2 {[%emt 0:00:01]} dxc4 {[%emt 0:00:03]} 9. bxc4 {[%emt 0:00:49]} e5 {[%emt 0:00:02]} 10. O-O {[%emt 0:00:04]} exd4 {[%emt 0:00:02]} 11. exd4 {[%emt 0:00:02]} Re8 {[%emt 0:00:00]} 12. Re1 {[%emt 0:00:45]} Nf8 {[%emt 0:00:02]} 13. Bf1 {[%emt 0:00:06]} Bf5 {[%emt 0:01:09]} 14. Qb3 {[%emt 0:00:33]} Rb8 {[%emt 0:00:23]} 15. Rxe8 {[%emt 0:00:22]} Qxe8 {[%emt 0:00:00]} 16. Re1 {[%emt 0:00:04]} Qd7 {[%emt 0:00:20]} 17. Ne5 {[%emt 0:00:44]} Qc7 {[%emt 0:00:25]} 18. Ne2 {[%emt 0:02:30]} Ng6 {[%emt 0:00:46]} 19. Ng3 {[%emt 0:00:31]} Be6 {[%emt 0:00:10]} 20. Qc2 {[%emt 0:01:18]} Bb4 {[%emt 0:00:39]} 21. Re3 {[%emt 0:00:32]} Rd8 {[%emt 0:00:45]} 22. Nxg6 {[%emt 0:00:28]} hxg6 {[%emt 0:00:04]} 23. Rxe6 {[%emt 0:00:35]} fxe6 {[%emt 0:00:07]} 24. c5 {[%emt 0:00:03]} Rf8 {[%emt 0:00:58]} 25. Bc1 {[%emt 0:00:07]} Nd5 {[%emt 0:00:51]} 26. Ne4 {[%emt 0:00:14]} b6 {[%emt 0:01:10]} 27. Ng5 {[%emt 0:00:07]} Rf6 {[%emt 0:00:02]} 28. a3 {[%emt 0:00:06]} Bc3 {[%emt 0:01:04]} 29. Qd3 {[%emt 0:00:05]} bxc5 {[%emt 0:00:20]} 30. dxc5 {[%emt 0:00:01]} Qe5 {[%emt 0:00:28]} 31. Qh3 {[%emt 0:00:11]} Rxf2 {[%emt 0:00:20]} 32. Kxf2 {[%emt 0:00:07]} Qe1+ {[%emt 0:00:01]} 33. Kf3 {[%emt 0:00:03]} Qxf1+ {[%emt 0:00:01]} 34. Kg4 {[%emt 0:00:03]} Qxc1 {[%emt 0:00:13]} 35. Qh7+ {[%emt 0:00:02]} Kf8 {[%emt 0:00:00]} 36. Qh8+ {[%emt 0:00:01]} Ke7 {[%emt 0:00:01]} 37. Qb8 {[%emt 0:00:01]} Nf6+ {[%emt 0:00:08]} 38. Kh4 {[%emt 0:00:02]} Be1+ {[%emt 0:00:04]} 39. g3 {[%emt 0:00:01]} Qd2 {[%emt 0:00:00]} 40. Qxa7+ {[%emt 0:00:02]} Nd7 {[%emt 0:00:01]} 41. Qc7 {[%emt 0:00:03]} Qxh2+ {[%emt 0:00:01]} 42. Kg4 {[%emt 0:00:01]} Qh5+ {[%emt 0:00:01]} 43. Kf4 {[%emt 0:00:01]} Bd2+ {[%emt 0:00:00]} 44. Ke4 {[%emt 0:00:01]} Qxg5 {[%emt 0:00:01]} 45. Qd6+ {[%emt 0:00:01]} Kd8 {[%emt 0:00:00]} 0-1

[Event "CCT Chessable Masters D-III 2024"]
[Site "Online"]
[Date "2024.02.03"]
[Round "53"]
[White "Bortnyk, Oleksandr"]
[Black "Lysyj, Igor"]
[Result "1-0"]
[ECO "C77"]
[WhiteElo "2640"]
[BlackElo "2589"]
[Annotator "ChessBase"]
[PlyCount "93"]
[EventDate "2024.01.12"]
[EventType "k.o."]
[EventCountry "NET"]
[SourceTitle "playchess.com"]
[Source "ChessBase"]
[SourceQuality "1"]
[TimeControl "600+2"]

1. e4 {[%emt 0:00:05]} e5 {[%emt 0:00:04]} 2. Nf3 {[%emt 0:00:02]} Nc6 {[%emt 0:00:01]} 3. Bb5 {[%emt 0:00:01]} a6 {[%emt 0:00:02]} 4. Ba4 {[%emt 0:00:01]} Nf6 {[%emt 0:00:01]} 5. Nc3 {[%emt 0:00:01]} Bc5 {[%emt 0:00:03]} 6. O-O {[%emt 0:00:14]} O-O {[%emt 0:00:08]} 7. d3 {[%emt 0:00:24]} d6 {[%emt 0:00:08]} 8. Bxc6 {[%emt 0:00:42]} bxc6 {[%emt 0:00:03]} 9. h3 {[%emt 0:00:00]} h6 {[%emt 0:00:08]} 10. Be3 {[%emt 0:00:06]} Bxe3 {[%emt 0:00:04]} 11. fxe3 {[%emt 0:00:01]} Re8 {[%emt 0:00:17]} 12. Qe1 {[%emt 0:00:15]} d5 {[%emt 0:00:09]} 13. Qg3 {[%emt 0:00:13]} Qd6 {[%emt 0:00:21]} 14. d4 {[%emt 0:00:33]} exd4 {[%emt 0:01:50]} 15. e5 {[%emt 0:00:00]} Nh5 {[%emt 0:00:01]} 16. Qh4 {[%emt 0:00:08]} Qg6 {[%emt 0:00:04]} 17. exd4 {[%emt 0:01:03]} Rb8 {[%emt 0:00:53]} 18. b3 {[%emt 0:01:13]} Ng3 {[%emt 0:00:18]} 19. Rfe1 {[%emt 0:00:33]} Bf5 {[%emt 0:00:23]} 20. Kh2 {[%emt 0:00:07]} Ne4 {[%emt 0:00:06]} 21. Ne2 {[%emt 0:00:01]} Ng5 {[%emt 0:00:44]} 22. c3 {[%emt 0:01:13]} Be4 {[%emt 0:01:31]} 23. Nf4 {[%emt 0:01:11]} Qf5 {[%emt 0:00:15]} 24. Nd2 {[%emt 0:00:01]} c5 {[%emt 0:00:14]} 25. Rf1 {[%emt 0:00:08]} cxd4 {[%emt 0:00:05]} 26. cxd4 {[%emt 0:00:00]} Qd7 {[%emt 0:00:33]} 27. Qg3 {[%emt 0:00:26]} Bh7 {[%emt 0:01:18]} 28. Rac1 {[%emt 0:00:11]} Rb4 {[%emt 0:00:08]} 29. Qc3 {[%emt 0:00:20]} Reb8 {[%emt 0:00:13]} 30. a3 {[%emt 0:00:05]} R4b7 {[%emt 0:00:03]} 31. b4 {[%emt 0:00:16]} Ne6 {[%emt 0:00:18]} 32. Nb3 {[%emt 0:00:06]} Be4 {[%emt 0:00:12]} 33. Nxe6 {[%emt 0:00:18]} Qxe6 {[%emt 0:00:01]} 34. Nc5 {[%emt 0:00:00]} Qg6 {[%emt 0:00:01]} 35. Rf2 {[%emt 0:00:01]} Ra7 {[%emt 0:00:15]} 36. Re1 {[%emt 0:00:18]} a5 {[%emt 0:00:05]} 37. bxa5 {[%emt 0:00:07]} Rb5 {[%emt 0:00:01]} 38. a6 {[%emt 0:00:04]} Rb6 {[%emt 0:00:00]} 39. Re3 {[%emt 0:00:01]} Rbxa6 {[%emt 0:00:02]} 40. Nxa6 {[%emt 0:00:03]} Qxa6 {[%emt 0:00:02]} 41. Rg3 {[%emt 0:00:04]} Bg6 {[%emt 0:00:04]} 42. Qc5 {[%emt 0:00:06]} Rb7 {[%emt 0:00:05]} 43. Qxd5 {[%emt 0:00:04]} Kh7 {[%emt 0:00:05]} 44. Rxg6 {[%emt 0:00:09]} fxg6 {[%emt 0:00:01]} 45. Rf8 {[%emt 0:00:00]} g5 {[%emt 0:00:03]} 46. Qe4+ {[%emt 0:00:10]} g6 {[%emt 0:00:02]} 47. Qd5 {[%emt 0:00:01]} 1-0

[Event "CCT Chessable Masters D-III 2024"]
[Site "Online"]
[Date "2024.02.03"]
[Round "53"]
[White "bardiya_Daneshvar"]
[Black "KuzubovYuriy"]
[Result "1/2-1/2"]
[ECO "A41"]
[WhiteElo "2607"]
[BlackElo "2674"]
[Annotator "ChessBase"]
[PlyCount "161"]
[EventDate "2024.01.12"]
[EventType "k.o."]
[EventCountry "NET"]
[SourceTitle "playchess.com"]
[Source "ChessBase"]
[SourceQuality "1"]
[TimeControl "600+2"]

1. d4 {[%emt 0:00:03]} g6 {[%emt 0:00:03]} 2. c4 {[%emt 0:00:01]} Bg7 {[%emt 0:00:01]} 3. Nc3 {[%emt 0:00:01]} d6 {[%emt 0:00:01]} 4. Nf3 {[%emt 0:00:01]} Bg4 {[%emt 0:00:04]} 5. e3 {[%emt 0:00:03]} Nc6 {[%emt 0:00:09]} 6. Be2 {[%emt 0:00:10]} e5 {[%emt 0:00:03]} 7. d5 {[%emt 0:00:31]} Bxf3 {[%emt 0:00:01]} 8. Bxf3 {[%emt 0:00:06]} Nce7 {[%emt 0:00:01]} 9. Qb3 {[%emt 0:00:00]} b6 {[%emt 0:00:38]} 10. e4 {[%emt 0:00:07]} f5 {[%emt 0:00:11]} 11. h4 {[%emt 0:00:05]} Bh6 {[%emt 0:01:02]} 12. Bg5 {[%emt 0:00:18]} Kf7 {[%emt 0:02:07]} 13. Ne2 {[%emt 0:01:01]} Kg7 {[%emt 0:00:21]} 14. Qe3 {[%emt 0:00:23]} Bxg5 {[%emt 0:00:28]} 15. hxg5 {[%emt 0:00:02]} h6 {[%emt 0:00:37]} 16. gxh6+ {[%emt 0:00:30]} Rxh6 {[%emt 0:00:28]} 17. O-O-O {[%emt 0:00:08]} f4 {[%emt 0:00:17]} 18. Qc3 {[%emt 0:00:20]} Rxh1 {[%emt 0:00:15]} 19. Rxh1 {[%emt 0:00:02]} Nf6 {[%emt 0:00:01]} 20. g3 {[%emt 0:00:13]} fxg3 {[%emt 0:00:11]} 21. Nxg3 {[%emt 0:00:22]} Qd7 {[%emt 0:00:28]} 22. Qd2 {[%emt 0:00:15]} Rh8 {[%emt 0:00:27]} 23. Rxh8 {[%emt 0:00:17]} Kxh8 {[%emt 0:00:00]} 24. Qh6+ {[%emt 0:00:11]} Kg8 {[%emt 0:00:29]} 25. b3 {[%emt 0:00:29]} Kf7 {[%emt 0:00:09]} 26. Kd2 {[%emt 0:00:30]} Qc8 {[%emt 0:00:19]} 27. Ke1 {[%emt 0:00:21]} Neg8 {[%emt 0:00:18]} 28. Qc1 {[%emt 0:00:48]} Qa6 {[%emt 0:00:13]} 29. Qd2 {[%emt 0:00:05]} Qa3 {[%emt 0:00:04]} 30. Ne2 {[%emt 0:00:04]} Kg7 {[%emt 0:00:08]} 31. Nc3 {[%emt 0:00:18]} a6 {[%emt 0:00:30]} 32. Ke2 {[%emt 0:00:41]} Nh6 {[%emt 0:00:04]} 33. Kd3 {[%emt 0:00:27]} Qa5 {[%emt 0:00:17]} 34. Be2 {[%emt 0:00:35]} Qc5 {[%emt 0:00:08]} 35. Qe3 {[%emt 0:00:09]} Qa3 {[%emt 0:00:03]} 36. Kc2 {[%emt 0:00:16]} Nf7 {[%emt 0:00:02]} 37. Kb1 {[%emt 0:00:22]} Nd7 {[%emt 0:00:05]} 38. Bg4 {[%emt 0:00:07]} Nc5 {[%emt 0:00:03]} 39. Bd1 {[%emt 0:00:01]} Qa5 {[%emt 0:00:07]} 40. Be2 {[%emt 0:00:08]} Qb4 {[%emt 0:00:03]} 41. Kb2 {[%emt 0:00:07]} Nb7 {[%emt 0:00:10]} 42. a3 {[%emt 0:00:23]} Qc5 {[%emt 0:00:00]} 43. Nd1 {[%emt 0:00:08]} Kf6 {[%emt 0:00:09]} 44. Qf3+ {[%emt 0:00:06]} Ke7 {[%emt 0:00:02]} 45. Kc2 {[%emt 0:00:07]} Qd4 {[%emt 0:00:01]} 46. Qg4 {[%emt 0:00:06]} Nc5 {[%emt 0:00:02]} 47. f3 {[%emt 0:00:03]} Qa1 {[%emt 0:00:04]} 48. Nc3 {[%emt 0:00:03]} Qe1 {[%emt 0:00:03]} 49. Qxg6 {[%emt 0:00:02]} Qf2 {[%emt 0:00:05]} 50. Qg4 {[%emt 0:00:03]} b5 {[%emt 0:00:02]} 51. cxb5 {[%emt 0:00:01]} axb5 {[%emt 0:00:00]} 52. Qh3 {[%emt 0:00:00]} b4 {[%emt 0:00:03]} 53. axb4 {[%emt 0:00:01]} Na6 {[%emt 0:00:01]} 54. Qf1 {[%emt 0:00:01]} Nxb4+ {[%emt 0:00:01]} 55. Kb1 {[%emt 0:00:02]} Qe3 {[%emt 0:00:02]} 56. Qc1 {[%emt 0:00:01]} Qd4 {[%emt 0:00:01]} 57. Nb5 {[%emt 0:00:01]} Qf2 {[%emt 0:00:03]} 58. Qxc7+ {[%emt 0:00:01]} Kf6 {[%emt 0:00:01]} 59. Qc4 {[%emt 0:00:01]} Qe1+ {[%emt 0:00:02]} 60. Kb2 {[%emt 0:00:00]} Ng5 {[%emt 0:00:04]} 61. Na3 {[%emt 0:00:04]} Nh3 {[%emt 0:00:02]} 62. Nc2 {[%emt 0:00:03]} Nxc2 {[%emt 0:00:01]} 63. Qxc2 {[%emt 0:00:00]} Nf4 {[%emt 0:00:02]} 64. Bb5 {[%emt 0:00:04]} Kg5 {[%emt 0:00:02]} 65. Bc4 {[%emt 0:00:04]} Kh4 {[%emt 0:00:01]} 66. Qh2+ {[%emt 0:00:02]} Kg5 {[%emt 0:00:01]} 67. Kc2 {[%emt 0:00:02]} Qa5 {[%emt 0:00:02]} 68. Qg3+ {[%emt 0:00:01]} Kh6 {[%emt 0:00:03]} 69. Qh4+ {[%emt 0:00:01]} Kg6 {[%emt 0:00:02]} 70. Qg4+ {[%emt 0:00:00]} Kf6 {[%emt 0:00:00]} 71. Qf5+ {[%emt 0:00:03]} Ke7 {[%emt 0:00:01]} 72. Qg5+ {[%emt 0:00:00]} Kd7 {[%emt 0:00:03]} 73. Qg7+ {[%emt 0:00:01]} Kc8 {[%emt 0:00:03]} 74. Qf8+ {[%emt 0:00:01]} Kb7 {[%emt 0:00:02]} 75. Qe7+ {[%emt 0:00:03]} Ka8 {[%emt 0:00:01]} 76. Qe8+ {[%emt 0:00:04]} Ka7 {[%emt 0:00:01]} 77. Qd7+ {[%emt 0:00:02]} Ka8 {[%emt 0:00:01]} 78. Qc8+ {[%emt 0:00:01]} Ka7 {[%emt 0:00:01]} 79. Qd7+ {[%emt 0:00:01]} Ka8 {[%emt 0:00:03]} 80. Qc8+ {[%emt 0:00:00]} Ka7 {[%emt 0:00:00]} 81. Qd7+ {[%emt 0:00:01]} 1/2-1/2